fUST/lending_fUST_20250408
["ID","MTS","AMOUNT","RATE_DAILY","PERIOD"]
[357441531,1744067460376,-161.937504,0.000249,7]
[357441532,1744067460385,-201.90408,0.000249,7]
[357441533,1744067460395,-201.90408,0.000249,7]
[357441534,1744067460405,-354.018382,0.000249,7]
[357441535,1744067460415,-354.018382,0.000249,7]
[357441536,1744067460425,-315323.826036,0.000249,2]
[357441537,1744067460434,-396.3,0.000249,2]
[357441538,1744067460444,-500.0,0.00024931,2]
[357441539,1744067460454,-500.0,0.00024931,2]
[357441540,1744067460464,-500.0,0.00024931,2]
[357441541,1744067460480,-500.0,0.00024931,2]
[357441542,1744067460489,-500.0,0.00024931,2]
[357441543,1744067460499,-500.0,0.00024931,2]
[357441544,1744067460509,-500.0,0.00024931,2]
[357441545,1744067460518,-581.98274341,0.00024931,2]
[357441546,1744067460528,-500.0,0.00024931,2]
[357441547,1744067460537,-500.0,0.00024931,2]
[357441548,1744067460548,-500.0,0.00024931,2]
[357441549,1744067460558,-500.0,0.00024931,2]
[357441550,1744067460568,-1072.29,0.00024931,2]
[357441551,1744067460578,-500.0,0.00024931,2]
[357441552,1744067460587,-500.0,0.00024931,2]
[357441553,1744067460597,-500.0,0.00024931,2]
[357441554,1744067460607,-927.79,0.00024931,2]
[357441555,1744067460617,-881.96,0.00024931,2]
[357441556,1744067460627,-547.24,0.00024931,2]
[357441557,1744067460637,-630.97,0.00024931,2]
[357441558,1744067460647,-616.34,0.00024931,2]
[357441559,1744067460657,-500.0,0.00024931,2]
[357441560,1744067460667,-605.8,0.00024931,2]
[357441561,1744067460677,-1060.35,0.00024931,2]
[357441562,1744067460687,-541.6,0.00024931,2]
[357441563,1744067460697,-500.0,0.00024931,2]
[357441564,1744067460707,-151.0,0.00024931,2]
[357441565,1744067460717,-151.0,0.00024931,2]
[357441566,1744067460727,-1035.03,0.00024931,2]
[357441567,1744067460737,-500.0,0.00024931,2]
[357441568,1744067460746,-151.0,0.00024931,7]
[357441569,1744067460756,-344.17077606,0.00024931,2]
[357441570,1744067460766,-668.67,0.00024931,2]
[357441571,1744067460775,-500.0,0.00024931,2]
[357441572,1744067460784,-619.26,0.00024931,2]
[357441573,1744067460794,-816.67,0.00024931,2]
[357441574,1744067460803,-731.78,0.00024931,2]
[357441575,1744067460813,-531.41683324,0.00024931,2]
[357441576,1744067460823,-500.0,0.00024931,2]
[357441577,1744067460833,-970.43,0.00024931,2]
[357441578,1744067460843,-540.9,0.00024931,2]
[357441579,1744067460852,-500.0,0.00024931,2]
[357441580,1744067460862,-500.0,0.00024931,2]
[357441581,1744067460872,-2092.69,0.00024931,2]
[357441582,1744067460882,-500.0,0.00024931,2]
[357441583,1744067460891,-500.0,0.00024931,2]
[357441584,1744067460901,-500.0,0.00024931,2]
[357441585,1744067460912,-752.75,0.00024931,2]
[357441586,1744067460921,-500.0,0.00024931,2]
[357441587,1744067460931,-1377.51,0.00024931,2]
[357441588,1744067460940,-971.08,0.00024931,2]
[357441589,1744067460950,-619.74,0.00024931,2]
[357441590,1744067460959,-833.2,0.00024931,2]
[357441591,1744067460969,-1253.58,0.00024931,2]
[357441592,1744067460979,-500.0,0.00024931,2]
[357441593,1744067460989,-1162.8,0.00024931,2]
[357441594,1744067460999,-674.12,0.00024931,2]
[357441595,1744067461008,-1156.07,0.00024931,2]
[357441596,1744067461017,-500.0,0.00024931,2]
[357441597,1744067461028,-1029.64,0.00024931,2]
[357441598,1744067461038,-503.72,0.00024931,2]
[357441599,1744067461047,-500.0,0.00024931,2]
[357441600,1744067461057,-500.0,0.00024931,2]
[357441601,1744067461067,-2686.13,0.00024931,2]
[357441602,1744067461077,-1085.9,0.00024931,2]
[357441603,1744067461086,-1743.37,0.00024931,2]
[357441604,1744067461096,-500.0,0.00024931,2]
[357441605,1744067461105,-618.76,0.00024931,2]
[357441606,1744067461114,-1894.63,0.00024931,2]
[357441607,1744067461124,-2082.85,0.00024931,2]
[357441608,1744067461133,-500.0,0.00024931,2]
[357441609,1744067461143,-1487.0,0.00024931,2]
[357441610,1744067461153,-500.0,0.00024931,2]
[357441611,1744067461163,-311.36505176,0.00024931,2]
[357441612,1744067461173,-500.0,0.00024931,2]
[357441613,1744067461183,-5056.29,0.00024931,2]
[357441614,1744067461193,-500.0,0.00024931,2]
[357441615,1744067461202,-636.86,0.00024931,2]
[357441616,1744067461212,-1012.24,0.00024931,2]
[357441617,1744067461222,-157.6,0.00024931,2]
[357441618,1744067461232,-717.76,0.00024931,2]
[357441619,1744067461243,-1782.72,0.00024931,2]
[357441620,1744067461254,-1521.98,0.00024931,2]
[357441621,1744067461264,-567.33,0.00024931,2]
[357441622,1744067461274,-1638.21,0.00024931,2]
[357441623,1744067461285,-1445.23,0.00024931,2]
[357441624,1744067461294,-500.0,0.00024931,2]
[357441625,1744067461303,-2872.91,0.00024931,2]
[357441626,1744067461313,-500.0,0.00024931,2]
[357441627,1744067461323,-500.0,0.00024931,2]
[357441628,1744067461333,-1631.28,0.00024931,2]
[357441629,1744067461343,-500.0,0.00024931,2]
[357441630,1744067461353,-500.0,0.00024931,2]
[357441631,1744067461363,-500.0,0.00024931,2]
[357441632,1744067461372,-500.0,0.00024931,2]
[357441633,1744067461381,-2426.48,0.00024931,2]
[357441634,1744067461391,-967.51,0.00024931,2]
[357441635,1744067461400,-863.93,0.00024931,2]
[357441636,1744067461410,-158.6695493,0.00024931,2]
[357441637,1744067461420,-388.52156503,0.00024931,2]
[357441638,1744067461430,-812.79,0.00024931,2]
[357441639,1744067461439,-1106.82,0.00024931,2]
[357441640,1744067461449,-500.0,0.00024931,2]
[357441641,1744067461459,-980.44,0.00024931,2]
[357441642,1744067461468,-500.0,0.00024931,2]
[357441643,1744067461478,-500.0,0.00024931,2]
[357441644,1744067461488,-674.71,0.00024931,2]
[357441645,1744067461497,-500.0,0.00024931,2]
[357441646,1744067461507,-2137.41,0.00024931,2]
[357441647,1744067461517,-1017.95,0.00024931,2]
[357441648,1744067461527,-500.0,0.00024931,2]
[357441649,1744067461537,-500.0,0.00024931,2]
[357441650,1744067461547,-7695.73,0.00024931,2]
[357441651,1744067461556,-1764.25,0.00024931,2]
[357441652,1744067461566,-245.39999353,0.00024931,2]
[357441653,1744067461575,-938.09,0.00024931,2]
[357441654,1744067461585,-1518.56,0.00024931,2]
[357441655,1744067461594,-500.0,0.00024931,2]
[357441656,1744067461604,-136799.24803995,0.00025,2]
[357441657,1744067461614,-500.0,0.00025205,2]
[357441658,1744067461624,-500.0,0.00025205,2]
[357441659,1744067461633,-500.0,0.00025205,2]
[357441660,1744067461643,-500.0,0.00025205,2]
[357441661,1744067461652,-500.0,0.00025205,2]
[357441662,1744067461662,-500.0,0.00025205,2]
[357441663,1744067461671,-500.0,0.00025205,2]
[357441664,1744067461681,-500.0,0.00025205,2]
[357441665,1744067461691,-500.0,0.00025205,2]
[357441666,1744067461700,-500.0,0.00025205,2]
[357441667,1744067461710,-500.0,0.00025205,2]
[357441668,1744067461720,-1072.29,0.00025205,2]
[357441669,1744067461729,-500.0,0.00025205,2]
[357441670,1744067461739,-500.0,0.00025205,2]
[357441671,1744067461749,-500.0,0.00025205,2]
[357441672,1744067461758,-927.79,0.00025205,2]
[357441673,1744067461769,-881.96,0.00025205,2]
[357441674,1744067461778,-547.24,0.00025205,2]
[357441675,1744067461788,-630.97,0.00025205,2]
[357441676,1744067461798,-616.34,0.00025205,2]
[357441677,1744067461808,-500.0,0.00025205,2]
[357441678,1744067461818,-151.0,0.00025205,7]
[357441679,1744067461828,-605.8,0.00025205,2]
[357441680,1744067461838,-1060.35,0.00025205,2]
[357441681,1744067461848,-541.6,0.00025205,2]
[357441682,1744067461858,-500.0,0.00025205,2]
[357441683,1744067461868,-1035.03,0.00025205,2]
[357441684,1744067461878,-500.0,0.00025205,2]
[357441685,1744067461887,-668.67,0.00025205,2]
[357441686,1744067461897,-500.0,0.00025205,2]
[357441687,1744067461908,-619.26,0.00025205,2]
[357441688,1744067461918,-816.67,0.00025205,2]
[357441689,1744067461927,-731.78,0.00025205,2]
[357441690,1744067461937,-500.0,0.00025205,2]
[357441691,1744067461947,-970.43,0.00025205,2]
[357441692,1744067461957,-540.9,0.00025205,2]
[357441693,1744067461967,-500.0,0.00025205,2]
[357441694,1744067461977,-500.0,0.00025205,2]
[357441695,1744067461986,-2092.69,0.00025205,2]
[357441696,1744067461996,-500.0,0.00025205,2]
[357441697,1744067462006,-500.0,0.00025205,2]
[357441698,1744067462016,-500.0,0.00025205,2]
[357441699,1744067462026,-752.75,0.00025205,2]
[357441700,1744067462036,-500.0,0.00025205,2]
[357441701,1744067462046,-1377.51,0.00025205,2]
[357441702,1744067462056,-971.08,0.00025205,2]
[357441703,1744067462066,-619.74,0.00025205,2]
[357441704,1744067462076,-833.2,0.00025205,2]
[357441705,1744067462086,-1253.58,0.00025205,2]
[357441706,1744067462096,-500.0,0.00025205,2]
[357441707,1744067462106,-1162.8,0.00025205,2]
[357441708,1744067462116,-674.12,0.00025205,2]
[357441709,1744067462125,-1156.07,0.00025205,2]
[357441710,1744067462136,-500.0,0.00025205,2]
[357441711,1744067462146,-1029.64,0.00025205,2]
[357441712,1744067462156,-503.72,0.00025205,2]
[357441713,1744067462166,-500.0,0.00025205,2]
[357441714,1744067462176,-500.0,0.00025205,2]
[357441715,1744067462186,-2686.13,0.00025205,2]
[357441716,1744067462196,-1085.9,0.00025205,2]
[357441717,1744067462206,-1743.37,0.00025205,2]
[357441718,1744067462216,-500.0,0.00025205,2]
[357441719,1744067462225,-618.76,0.00025205,2]
[357441720,1744067462235,-1894.63,0.00025205,2]
[357441721,1744067462248,-2082.85,0.00025205,2]
[357441722,1744067462258,-500.0,0.00025205,2]
[357441723,1744067462268,-1487.0,0.00025205,2]
[357441724,1744067462278,-500.0,0.00025205,2]
[357441725,1744067462289,-500.0,0.00025205,2]
[357441726,1744067462300,-5056.29,0.00025205,2]
[357441727,1744067462310,-500.0,0.00025205,2]
[357441728,1744067462322,-636.86,0.00025205,2]
[357441729,1744067462332,-1012.24,0.00025205,2]
[357441730,1744067462343,-717.76,0.00025205,2]
[357441731,1744067462352,-1782.72,0.00025205,2]
[357441732,1744067462362,-1521.98,0.00025205,2]
[357441733,1744067462372,-567.33,0.00025205,2]
[357441734,1744067462381,-1638.21,0.00025205,2]
[357441735,1744067462391,-1445.23,0.00025205,2]
[357441736,1744067462401,-500.0,0.00025205,2]
[357441737,1744067462411,-2872.91,0.00025205,2]
[357441738,1744067462421,-500.0,0.00025205,2]
[357441739,1744067462430,-500.0,0.00025205,2]
[357441740,1744067462440,-1631.28,0.00025205,2]
[357441741,1744067462449,-500.0,0.00025205,2]
[357441742,1744067462459,-500.0,0.00025205,2]
[357441743,1744067462469,-500.0,0.00025205,2]
[357441744,1744067462480,-500.0,0.00025205,2]
[357441745,1744067462490,-2426.48,0.00025205,2]
[357441746,1744067462500,-967.51,0.00025205,2]
[357441747,1744067462510,-863.93,0.00025205,2]
[357441748,1744067462519,-812.79,0.00025205,2]
[357441749,1744067462529,-1106.82,0.00025205,2]
[357441750,1744067462539,-500.0,0.00025205,2]
[357441751,1744067462549,-980.44,0.00025205,2]
[357441752,1744067462559,-500.0,0.00025205,2]
[357441753,1744067462569,-500.0,0.00025205,2]
[357441754,1744067462579,-674.71,0.00025205,2]
[357441755,1744067462589,-500.0,0.00025205,2]
[357441756,1744067462599,-2137.41,0.00025205,2]
[357441757,1744067462610,-1017.95,0.00025205,2]
[357441758,1744067462620,-500.0,0.00025205,2]
[357441759,1744067462630,-500.0,0.00025205,2]
[357441760,1744067462640,-7695.73,0.00025205,2]
[357441761,1744067462649,-1764.25,0.00025205,2]
[357441762,1744067462659,-938.09,0.00025205,2]
[357441763,1744067462669,-1518.56,0.00025205,2]
[357441764,1744067462679,-500.0,0.00025205,2]
[357441765,1744067462690,-500.0,0.00025479,2]
[357441766,1744067462700,-500.0,0.00025479,2]
[357441767,1744067462710,-500.0,0.00025479,2]
[357441768,1744067462721,-500.0,0.00025479,2]
[357441769,1744067462731,-500.0,0.00025479,2]
[357441770,1744067462742,-500.0,0.00025479,2]
[357441771,1744067462752,-394.68904448,0.00025479,2]
[357441772,1744067462762,-383.08,0.00025479,2]
[357441773,1744067462772,-424.59,0.00025479,2]
[357441774,1744067462782,-500.0,0.00025479,2]
[357441775,1744067462793,-500.0,0.00025479,2]
[357441776,1744067462803,-1072.29,0.00025479,2]
[357441777,1744067462813,-549.5,0.00025479,2]
[357441778,1744067462823,-500.0,0.00025479,2]
[357441779,1744067462833,-500.0,0.00025479,2]
[357441780,1744067462843,-927.79,0.00025479,2]
[357441781,1744067462854,-881.96,0.00025479,2]
[357441782,1744067462864,-547.24,0.00025479,2]
[357441783,1744067462874,-630.97,0.00025479,2]
[357441784,1744067462884,-616.34,0.00025479,2]
[357441785,1744067462894,-500.0,0.00025479,2]
[357441786,1744067462904,-605.8,0.00025479,2]
[357441787,1744067462915,-1060.35,0.00025479,2]
[357441788,1744067462925,-541.6,0.00025479,2]
[357441789,1744067462935,-500.0,0.00025479,2]
[357441790,1744067462946,-1035.03,0.00025479,2]
[357441791,1744067462956,-500.0,0.00025479,2]
[357441792,1744067462966,-668.67,0.00025479,2]
[357441793,1744067462976,-500.0,0.00025479,2]
[357441794,1744067462986,-619.26,0.00025479,2]
[357441795,1744067462996,-816.67,0.00025479,2]
[357441796,1744067463006,-731.78,0.00025479,2]
[357441797,1744067463016,-500.0,0.00025479,2]
[357441798,1744067463026,-970.43,0.00025479,2]
[357441799,1744067463036,-540.9,0.00025479,2]
[357441800,1744067463047,-500.0,0.00025479,2]
[357441801,1744067463057,-500.0,0.00025479,2]
[357441802,1744067463068,-2092.69,0.00025479,2]
[357441803,1744067463078,-500.0,0.00025479,2]
[357441804,1744067463088,-500.0,0.00025479,2]
[357441805,1744067463098,-500.0,0.00025479,2]
[357441806,1744067463123,-752.75,0.00025479,2]
[357441807,1744067463136,-500.0,0.00025479,2]
[357441808,1744067463147,-1377.51,0.00025479,2]
[357441809,1744067463159,-971.08,0.00025479,2]
[357441810,1744067463170,-619.74,0.00025479,2]
[357441811,1744067463181,-833.2,0.00025479,2]
[357441812,1744067463192,-1253.58,0.00025479,2]
[357441813,1744067463204,-500.0,0.00025479,2]
[357441814,1744067463216,-674.12,0.00025479,2]
[357441815,1744067463227,-1156.07,0.00025479,2]
[357441816,1744067463240,-1162.8,0.00025479,2]
[357441817,1744067463253,-500.0,0.00025479,2]
[357441818,1744067463264,-1029.64,0.00025479,2]
[357441819,1744067463275,-503.72,0.00025479,2]
[357441820,1744067463286,-500.0,0.00025479,2]
[357441821,1744067463298,-637.07352425,0.00025479,2]
[357441822,1744067463308,-2686.13,0.00025479,2]
[357441823,1744067463320,-1085.9,0.00025479,2]
[357441824,1744067463331,-1743.37,0.00025479,2]
[357441825,1744067463342,-500.0,0.00025479,2]
[357441826,1744067463353,-618.76,0.00025479,2]
[357441827,1744067463364,-1894.63,0.00025479,2]
[357441828,1744067463376,-2082.85,0.00025479,2]
[357441829,1744067463387,-500.0,0.00025479,2]
[357441830,1744067463399,-1487.0,0.00025479,2]
[357441831,1744067463411,-500.0,0.00025479,2]
[357441832,1744067463422,-500.0,0.00025479,2]
[357441833,1744067463434,-5056.29,0.00025479,2]
[357441834,1744067463445,-467.03,0.00025479,2]
[357441835,1744067463457,-636.86,0.00025479,2]
[357441836,1744067463468,-1012.24,0.00025479,2]
[357441837,1744067463479,-717.76,0.00025479,2]
[357441838,1744067463490,-1782.72,0.00025479,2]
[357441839,1744067463501,-1521.98,0.00025479,2]
[357441840,1744067463512,-567.33,0.00025479,2]
[357441841,1744067463523,-1638.21,0.00025479,2]
[357441842,1744067463533,-1445.23,0.00025479,2]
[357441843,1744067463544,-500.0,0.00025479,2]
[357441844,1744067463555,-2872.91,0.00025479,2]
[357441845,1744067463566,-500.0,0.00025479,2]
[357441846,1744067463576,-500.0,0.00025479,2]
[357441847,1744067463587,-1631.28,0.00025479,2]
[357441848,1744067463598,-500.0,0.00025479,2]
[357441849,1744067463609,-500.0,0.00025479,2]
[357441850,1744067463620,-500.0,0.00025479,2]
[357441851,1744067463631,-500.0,0.00025479,2]
[357441852,1744067463642,-2426.48,0.00025479,2]
[357441853,1744067463653,-967.51,0.00025479,2]
[357441854,1744067463664,-863.93,0.00025479,2]
[357441855,1744067463674,-812.79,0.00025479,2]
[357441856,1744067463685,-1106.82,0.00025479,2]
[357441857,1744067463696,-339.96220746,0.00025479,2]
[357441858,1744067463708,-980.44,0.00025479,2]
[357441859,1744067463724,-500.0,0.00025479,2]
[357441860,1744067463735,-500.0,0.00025479,2]
[357441861,1744067463746,-674.71,0.00025479,2]
[357441862,1744067463758,-500.0,0.00025479,2]
[357441863,1744067463770,-2137.41,0.00025479,2]
[357441864,1744067463781,-1017.95,0.00025479,2]
[357441865,1744067463792,-500.0,0.00025479,2]
[357441866,1744067463803,-500.0,0.00025479,2]
[357441867,1744067463814,-7695.73,0.00025479,2]
[357441868,1744067463824,-1764.25,0.00025479,2]
[357441869,1744067463835,-938.09,0.00025479,2]
[357441870,1744067463846,-1518.56,0.00025479,2]
[357441871,1744067463857,-500.0,0.00025479,2]
[357441872,1744067463867,-223.0315306,0.00025611,2]
[357441873,1744067463878,-500.0,0.00025753,2]
[357441874,1744067463889,-500.0,0.00025753,2]
[357441875,1744067463900,-500.0,0.00025753,2]
[357441876,1744067463911,-500.0,0.00025753,2]
[357441877,1744067463921,-500.0,0.00025753,2]
[357441878,1744067463932,-500.0,0.00025753,2]
[357441879,1744067463942,-500.0,0.00025753,2]
[357441880,1744067463953,-500.0,0.00025753,2]
[357441881,1744067463964,-1072.29,0.00025753,2]
[357441882,1744067463975,-500.0,0.00025753,2]
[357441883,1744067463986,-500.0,0.00025753,2]
[357441884,1744067463997,-927.79,0.00025753,2]
[357441885,1744067464009,-881.96,0.00025753,2]
[357441886,1744067464020,-547.24,0.00025753,2]
[357441887,1744067464031,-630.97,0.00025753,2]
[357441888,1744067464042,-616.34,0.00025753,2]
[357441889,1744067464053,-500.0,0.00025753,2]
[357441890,1744067464064,-605.8,0.00025753,2]
[357441891,1744067464074,-1060.35,0.00025753,2]
[357441892,1744067464085,-541.6,0.00025753,2]
[357441893,1744067464097,-500.0,0.00025753,2]
[357441894,1744067464107,-1035.03,0.00025753,2]
[357441895,1744067464119,-500.0,0.00025753,2]
[357441896,1744067464131,-668.67,0.00025753,2]
[357441897,1744067464400,-500.0,0.00025753,2]
[357441898,1744067464423,-619.26,0.00025753,2]
[357441899,1744067464434,-816.67,0.00025753,2]
[357441900,1744067464444,-731.78,0.00025753,2]
[357441901,1744067464454,-440.0989177,0.00025753,2]
[357441902,1744067464464,-970.43,0.00025753,2]
[357441903,1744067464475,-540.9,0.00025753,2]
[357441904,1744067464485,-500.0,0.00025753,2]
[357441905,1744067464495,-500.0,0.00025753,2]
[357441906,1744067464505,-2092.69,0.00025753,2]
[357441907,1744067464515,-500.0,0.00025753,2]
[357441908,1744067464525,-500.0,0.00025753,2]
[357441909,1744067464534,-500.0,0.00025753,2]
[357441910,1744067464544,-752.75,0.00025753,2]
[357441911,1744067464554,-590.19,0.00025753,2]
[357441912,1744067464563,-1377.51,0.00025753,2]
[357441913,1744067464574,-971.08,0.00025753,2]
[357441914,1744067464583,-619.74,0.00025753,2]
[357441915,1744067464593,-833.2,0.00025753,2]
[357441916,1744067464603,-1253.58,0.00025753,2]
[357441917,1744067464613,-500.0,0.00025753,2]
[357441918,1744067464622,-674.12,0.00025753,2]
[357441919,1744067464632,-1156.07,0.00025753,2]
[357441920,1744067464642,-1162.8,0.00025753,2]
[357441921,1744067464652,-500.0,0.00025753,2]
[357441922,1744067464663,-1029.64,0.00025753,2]
[357441923,1744067464672,-503.72,0.00025753,2]
[357441924,1744067464682,-500.0,0.00025753,2]
[357441925,1744067464692,-2686.13,0.00025753,2]
[357441926,1744067464703,-1085.9,0.00025753,2]
[357441927,1744067464713,-1743.37,0.00025753,2]
[357441928,1744067464723,-500.0,0.00025753,2]
[357441929,1744067464733,-618.76,0.00025753,2]
[357441930,1744067464744,-1894.63,0.00025753,2]
[357441931,1744067464754,-2082.85,0.00025753,2]
[357441932,1744067464763,-500.0,0.00025753,2]
[357441933,1744067464773,-1487.0,0.00025753,2]
[357441934,1744067464783,-500.0,0.00025753,2]
[357441935,1744067464793,-500.0,0.00025753,2]
[357441936,1744067464804,-5056.29,0.00025753,2]
[357441937,1744067464813,-636.86,0.00025753,2]
[357441938,1744067464823,-1012.24,0.00025753,2]
[357441939,1744067464833,-717.76,0.00025753,2]
[357441940,1744067464843,-1782.72,0.00025753,2]
[357441941,1744067464853,-1521.98,0.00025753,2]
[357441942,1744067464863,-567.33,0.00025753,2]
[357441943,1744067464873,-1638.21,0.00025753,2]
[357441944,1744067464882,-1445.23,0.00025753,2]
[357441945,1744067464892,-500.0,0.00025753,2]
[357441946,1744067464902,-2872.91,0.00025753,2]
[357441947,1744067464912,-500.0,0.00025753,2]
[357441948,1744067464922,-249.82684509,0.00025753,2]
[357441949,1744067464932,-1631.28,0.00025753,2]
[357441950,1744067464942,-500.0,0.00025753,2]
[357441951,1744067464952,-500.0,0.00025753,2]
[357441952,1744067464963,-500.0,0.00025753,2]
[357441953,1744067464973,-500.0,0.00025753,2]
[357441954,1744067464983,-2426.48,0.00025753,2]
[357441955,1744067464993,-967.51,0.00025753,2]
[357441956,1744067465002,-863.93,0.00025753,2]
[357441957,1744067465013,-812.79,0.00025753,2]
[357441958,1744067465023,-1106.82,0.00025753,2]
[357441959,1744067465033,-980.44,0.00025753,2]
[357441960,1744067465043,-500.0,0.00025753,2]
[357441961,1744067465053,-500.0,0.00025753,2]
[357441962,1744067465063,-674.71,0.00025753,2]
[357441963,1744067465073,-500.0,0.00025753,2]
[357441964,1744067465083,-2137.41,0.00025753,2]
[357441965,1744067465094,-1017.95,0.00025753,2]
[357441966,1744067465104,-500.0,0.00025753,2]
[357441967,1744067465114,-500.0,0.00025753,2]
[357441968,1744067465124,-7695.73,0.00025753,2]
[357441969,1744067465134,-1764.25,0.00025753,2]
[357441970,1744067465156,-938.09,0.00025753,2]
[357441971,1744067465174,-1518.56,0.00025753,2]
[357441972,1744067465185,-500.0,0.00025753,2]
[357441973,1744067465196,-156.310352,0.00025904,2]
[357441974,1744067465208,-500.0,0.00026027,2]
[357441975,1744067465219,-341.88998499,0.00026027,2]
[357441976,1744067465230,-500.0,0.00026027,2]
[357441977,1744067465244,-397.98999485,0.00026027,2]
[357441978,1744067465255,-500.0,0.00026027,2]
[357441979,1744067465266,-500.0,0.00026027,2]
[357441980,1744067465277,-500.0,0.00026027,2]
[357441981,1744067465288,-500.0,0.00026027,2]
[357441982,1744067465298,-1072.29,0.00026027,2]
[357441983,1744067465309,-500.0,0.00026027,2]
[357441984,1744067465322,-500.0,0.00026027,2]
[357441985,1744067465333,-927.79,0.00026027,2]
[357441986,1744067465344,-881.96,0.00026027,2]
[357441987,1744067465354,-547.24,0.00026027,2]
[357441988,1744067465365,-630.97,0.00026027,2]
[357441989,1744067465376,-616.34,0.00026027,2]
[357441990,1744067465387,-500.0,0.00026027,2]
[357441991,1744067465397,-605.8,0.00026027,2]
[357441992,1744067465409,-1060.35,0.00026027,2]
[357441993,1744067465422,-541.6,0.00026027,2]
[357441994,1744067465432,-500.0,0.00026027,2]
[357441995,1744067465442,-1035.03,0.00026027,2]
[357441996,1744067465452,-190.73412388,0.00026027,2]
[357441997,1744067465463,-668.67,0.00026027,2]
[357441998,1744067465474,-500.0,0.00026027,2]
[357441999,1744067465485,-619.26,0.00026027,2]
[357442000,1744067465495,-816.67,0.00026027,2]
[357442001,1744067465505,-731.78,0.00026027,2]
[357442002,1744067465516,-970.43,0.00026027,2]
[357442003,1744067465526,-540.9,0.00026027,2]
[357442004,1744067465536,-500.0,0.00026027,2]
[357442005,1744067465546,-500.0,0.00026027,2]
[357442006,1744067465557,-2092.69,0.00026027,2]
[357442007,1744067465567,-500.0,0.00026027,2]
[357442008,1744067465578,-500.0,0.00026027,2]
[357442009,1744067465589,-500.0,0.00026027,2]
[357442010,1744067465599,-752.75,0.00026027,2]
[357442011,1744067465609,-1377.51,0.00026027,2]
[357442012,1744067465620,-971.08,0.00026027,2]
[357442013,1744067465630,-619.74,0.00026027,2]
[357442014,1744067465640,-833.2,0.00026027,2]
[357442015,1744067465651,-1253.58,0.00026027,2]
[357442016,1744067465662,-500.0,0.00026027,2]
[357442017,1744067465673,-674.12,0.00026027,2]
[357442018,1744067465683,-1156.07,0.00026027,2]
[357442019,1744067465694,-500.0,0.00026027,2]
[357442020,1744067465704,-1162.8,0.00026027,2]
[357442021,1744067465714,-1029.64,0.00026027,2]
[357442022,1744067465725,-503.72,0.00026027,2]
[357442023,1744067465734,-500.0,0.00026027,2]
[357442024,1744067465744,-2686.13,0.00026027,2]
[357442025,1744067465753,-1085.9,0.00026027,2]
[357442026,1744067465763,-1743.37,0.00026027,2]
[357442027,1744067465773,-500.0,0.00026027,2]
[357442028,1744067465783,-618.76,0.00026027,2]
[357442029,1744067465792,-1894.63,0.00026027,2]
[357442030,1744067465802,-2082.85,0.00026027,2]